bitfinex-derivatives/quotes_BTCF0:USTF0_20250508
["timestamp","ask_amount","ask_price","bid_price","bid_amount"]
[1746671209251,0.3608,98577.0,98572.0,0.0507213]
[1746671209446,0.3608,98577.0,98576.0,0.202879]
[1746671209846,0.3608,98577.0,98574.0,0.0507207]
[1746671209847,0.2028831,98574.0,98573.0,0.1615]
[1746671210042,0.0507228,98570.0,98565.0,0.3608]
[1746671210248,0.68907,98567.0,98566.0,0.2432875]
[1746671210547,0.68907,98570.0,98569.0,0.2028934]
[1746671210753,0.56399672,98570.0,98569.0,0.2028934]
[1746671211252,0.56399672,98570.0,98569.0,0.3708934]
[1746671212244,0.56399672,98570.0,98569.0,0.4518534]
[1746671212850,0.36110542,98570.0,98569.0,0.4518534]
[1746671213050,0.56599672,98570.0,98569.0,0.4518534]
[1746671213449,0.56899672,98570.0,98569.0,0.4518534]
[1746671213848,0.36610542,98570.0,98569.0,0.4518534]
[1746671214957,0.36610542,98570.0,98569.0,0.3708934]
[1746671215154,0.36610542,98570.0,98569.0,0.4518534]
[1746671215365,0.36610542,98570.0,98569.0,0.3708934]
[1746671215551,0.36610542,98570.0,98569.0,0.4518534]
[1746671215752,0.56899672,98570.0,98569.0,0.4518534]
[1746671216559,0.56899672,98570.0,98569.0,0.168]
[1746671216762,1.25806672,98570.0,98569.0,0.15023401]
[1746671216951,1.25806672,98570.0,98544.0,0.4115361]
[1746671216952,0.68907,98557.0,98544.0,0.4115361]
[1746671217148,0.68907,98558.0,98551.0,0.0507321]
[1746671217354,0.41732349,98569.0,98551.0,0.0507321]
[1746671217355,0.27862349,98569.0,98557.0,0.3608]
[1746671217557,0.27862349,98568.0,98559.0,0.09288561]
[1746671217766,0.2536193,98568.0,98567.0,0.5636975]
[1746671217959,0.27862349,98568.0,98567.0,0.5636975]
[1746671218267,0.48151889,98568.0,98567.0,0.6910875]
[1746671218466,1.1402289,98568.0,98567.0,0.6910875]
[1746671219365,1.1422289,98568.0,98567.0,0.6910875]
[1746671219952,1.1442289,98568.0,98567.0,0.6910875]
[1746671220772,0.9413335,98568.0,98567.0,0.6910875]
[1746671221274,1.1442289,98568.0,98567.0,0.6910875]
[1746671221468,1.1442289,98568.0,98567.0,0.48819]
[1746671221671,1.1442289,98568.0,98567.0,0.6910875]
[1746671222574,0.004,98568.0,98567.0,0.6910875]
[1746671222970,0.0015,98580.0,98579.0,0.2028728]
[1746671223170,0.2043707,98580.0,98579.0,0.4518328]
[1746671223370,0.28012349,98580.0,98579.0,0.4723228]
[1746671223766,0.28012349,98580.0,98579.0,0.52199545]
[1746671224876,0.0566,98593.0,98585.0,0.2028604]
[1746671225268,0.48248189,98586.0,98585.0,0.3302604]
[1746671226077,0.49048189,98586.0,98585.0,0.3302604]
[1746671227879,0.2118584,98586.0,98585.0,0.3302604]
[1746671228079,0.009,98586.0,98585.0,0.3302604]
[1746671228281,0.009,98586.0,98585.0,0.2896604]
[1746671229080,0.009,98586.0,98585.0,0.29724907]
[1746671229274,0.009,98586.0,98585.0,0.37808907]
[1746671229679,0.009,98586.0,98585.0,0.43538907]
[1746671229871,0.009,98586.0,98585.0,0.35454907]
[1746671230072,0.009,98586.0,98585.0,0.43534907]
[1746671230272,0.13935601,98600.0,98599.0,0.2028316]
[1746671230570,0.34218561,98600.0,98599.0,0.2128316]
[1746671230873,0.13935601,98600.0,98599.0,0.2128316]
[1746671231078,0.34218561,98600.0,98599.0,0.3808316]
[1746671231275,0.34218561,98600.0,98599.0,0.3502316]
[1746671231480,1.27951911,98600.0,98599.0,0.2282]
[1746671231681,1.27951911,98600.0,98599.0,0.3445]
[1746671231881,1.28951911,98600.0,98599.0,0.3455]
[1746671232175,1.34721911,98600.0,98599.0,0.5077316]
[1746671232389,0.40988561,98600.0,98599.0,0.5077316]
[1746671233472,0.40988561,98600.0,98599.0,0.3049]
[1746671233771,1.34721911,98600.0,98599.0,0.2469]
[1746671235879,1.40491911,98600.0,98599.0,0.2469]
[1746671236076,1.39836911,98600.0,98599.0,0.1501]
[1746671237075,1.39836911,98600.0,98599.0,0.3181]
[1746671237275,1.29836911,98600.0,98599.0,0.3181]
[1746671237477,1.29836911,98600.0,98599.0,0.5209316]
[1746671237673,0.01,98600.0,98599.0,0.5209316]
[1746671237882,0.001,98616.0,98614.0,0.2028008]
[1746671238178,0.2027642,98632.0,98614.0,0.6196]
[1746671238376,0.0506688,98675.0,98626.0,0.2027761]
[1746671238682,0.0506688,98675.0,98648.0,0.3608]
[1746671238683,0.2637288,98649.0,98648.0,0.3608]
[1746671238879,1.7337288,98649.0,98648.0,0.3608]
[1746671239079,1.8351008,98649.0,98648.0,0.5288]
[1746671239281,1.7337288,98649.0,98648.0,0.48821]
[1746671240279,1.7337288,98649.0,98648.0,0.44763]
[1746671240482,0.2027617,98633.0,98626.0,0.3608]
[1746671240783,0.2027617,98633.0,98630.0,0.05090478]
[1746671241180,0.2027617,98633.0,98632.0,0.1289308]
[1746671241385,1.7741497,98633.0,98632.0,0.1289308]
[1746671241577,1.8967497,98633.0,98632.0,0.1289308]
[1746671241776,1.8967497,98633.0,98632.0,0.1309308]
[1746671242380,1.8967497,98633.0,98632.0,0.0903408]
[1746671243769,1.7953617,98633.0,98632.0,0.0903408]
[1746671243974,1.5926,98633.0,98632.0,0.2931046]
[1746671244278,1.7953617,98633.0,98632.0,0.2525246]
[1746671244481,1.7953617,98633.0,98632.0,0.0497608]
[1746671245276,1.7953617,98633.0,98632.0,0.0091708]
[1746671245470,0.09288561,98642.0,98632.0,0.0091708]
[1746671245670,0.09288561,98642.0,98641.0,0.3608]
[1746671245671,0.29562881,98642.0,98641.0,0.3608]
[1746671245877,0.2027432,98642.0,98641.0,0.3608]
[1746671246079,0.712176,98642.0,98616.0,0.3608]
[1746671246375,0.2012738,98617.0,98616.0,0.3608]
[1746671246578,0.2028152,98607.0,98606.0,0.3608]
[1746671247283,0.2028152,98607.0,98606.0,0.5288]
[1746671248178,0.3042272,98607.0,98606.0,0.5318]
[1746671249075,0.4242272,98607.0,98606.0,0.5318]
[1746671249471,0.3228152,98607.0,98606.0,0.5318]
[1746671249684,0.3228152,98607.0,98606.0,0.7346172]
[1746671250082,0.3228152,98607.0,98606.0,0.5318]
[1746671250389,0.3228152,98607.0,98606.0,0.7346172]
[1746671250984,0.3228152,98607.0,98606.0,0.5318]
[1746671251584,0.4242272,98607.0,98606.0,0.5318]
[1746671252281,0.2028337,98598.0,98597.0,0.00152134]
[1746671252680,0.3042577,98598.0,98597.0,0.00152134]
[1746671253280,0.6650577,98598.0,98597.0,0.16952134]
[1746671253588,0.2028584,98586.0,98585.0,0.00101435]
[1746671253977,0.3042944,98586.0,98585.0,0.00101435]
[1746671254178,0.3042944,98586.0,98585.0,0.16901435]
[1746671254685,0.09288561,98595.0,98585.0,0.16901435]
[1746671254686,0.0507076,98600.0,98585.0,0.16901435]
[1746671254982,0.2028535,98591.0,98590.0,0.202846]
[1746671255181,0.2028535,98591.0,98590.0,0.496446]
[1746671256084,0.2666535,98591.0,98590.0,0.496446]
[1746671257289,0.2686535,98591.0,98590.0,0.496446]
[1746671257980,0.2686535,98591.0,98590.0,0.498446]
[1746671258180,0.2666535,98591.0,98590.0,0.498446]
[1746671258684,0.0507006,98614.0,98603.0,0.2535213]
[1746671258889,0.2028193,98605.0,98604.0,0.3608]
[1746671259089,0.2028193,98605.0,98604.0,0.5288]
[1746671259287,0.3264193,98605.0,98604.0,0.7316213]
[1746671260590,0.3264193,98605.0,98604.0,0.5915]
[1746671261081,0.3264193,98605.0,98604.0,0.5288]
[1746671261285,0.3264193,98605.0,98604.0,0.5298]
[1746671261589,0.3264193,98605.0,98604.0,0.5318]
[1746671261787,0.0506888,98637.0,98614.0,0.2028008]
[1746671261988,0.0506822,98649.0,98635.0,0.2534376]
[1746671262183,0.2027432,98643.0,98642.0,0.2027432]
[1746671262385,0.2027432,98643.0,98642.0,0.0633]
[1746671262686,0.2027432,98643.0,98642.0,0.04554709]
[1746671262687,0.3220432,98643.0,98642.0,0.04554709]
[1746671262884,0.3220432,98643.0,98642.0,0.10404709]
[1746671263186,0.3220432,98643.0,98641.0,0.3608]
[1746671263187,0.2027432,98642.0,98641.0,0.3608]
[1746671263388,0.2027432,98642.0,98641.0,0.5635453]
[1746671263595,0.2636432,98642.0,98641.0,0.5635453]
[1746671263990,0.2636432,98642.0,98641.0,0.3608]
[1746671264192,0.2636432,98642.0,98641.0,0.5288]
[1746671264485,0.7278192,98642.0,98641.0,0.168]
[1746671264688,0.2047432,98642.0,98641.0,0.5288]
[1746671265089,0.2057432,98642.0,98641.0,0.5288]
[1746671266284,0.2057432,98642.0,98641.0,0.8569453]
[1746671266285,0.003,98642.0,98641.0,0.8569453]
[1746671266687,0.2057432,98642.0,98641.0,0.8569453]
[1746671267486,0.2057432,98642.0,98641.0,0.6542]
[1746671267885,0.3071192,98642.0,98641.0,0.5288]
[1746671268286,0.3654192,98642.0,98641.0,0.5288]
[1746671269091,0.2640432,98642.0,98641.0,0.5288]
[1746671270391,0.0506874,98639.0,98619.0,0.3608]
[1746671270586,0.2027782,98625.0,98624.0,0.0808]
[1746671271091,0.0506745,98665.0,98624.0,0.58894293]
[1746671271395,0.2037459,98642.0,98641.0,0.3608]
[1746671271984,0.2037459,98642.0,98641.0,0.0775]
[1746671272184,0.3420459,98642.0,98641.0,0.2455]
[1746671272390,0.3420459,98642.0,98641.0,0.168]
[1746671272696,0.4434219,98642.0,98641.0,0.168]
[1746671273287,0.4424219,98642.0,98641.0,0.168]
[1746671274486,0.4434219,98642.0,98641.0,0.168]
[1746671274895,0.4454219,98642.0,98641.0,0.168]
[1746671276091,0.8062219,98642.0,98641.0,0.168]
[1746671279692,0.8052219,98642.0,98641.0,0.168]
[1746671279893,0.8072219,98642.0,98641.0,0.168]
[1746671281101,0.8052219,98642.0,98641.0,0.168]
[1746671281296,0.8072219,98642.0,98641.0,0.168]
[1746671281496,0.8062219,98642.0,98641.0,0.168]
[1746671283102,0.8072219,98642.0,98641.0,0.168]
[1746671283306,0.8072219,98642.0,98641.0,0.15024444]
[1746671283498,0.8052219,98642.0,98641.0,0.15024444]
[1746671283699,0.8072219,98642.0,98641.0,0.15024444]
[1746671284106,0.8052219,98642.0,98641.0,0.15024444]
[1746671284403,0.4444219,98642.0,98641.0,0.15024444]
[1746671284601,0.3450459,98642.0,98641.0,0.15024444]
[1746671286308,0.2818459,98642.0,98641.0,0.15024444]
[1746671286699,0.004,98642.0,98641.0,0.35298974]
[1746671287009,0.2057432,98642.0,98641.0,0.35298974]
[1746671287403,0.2037432,98642.0,98641.0,0.35298974]
[1746671287604,0.2057432,98642.0,98641.0,0.35298974]
[1746671287803,0.2057432,98642.0,98641.0,0.15024444]
[1746671288009,0.2057432,98642.0,98641.0,0.35298974]
[1746671288208,0.001,98646.0,98641.0,0.50162044]
[1746671288412,0.0015,98650.0,98649.0,0.2027288]
[1746671288605,0.0015,98650.0,98649.0,0.5635288]
[1746671288907,0.0015,98650.0,98649.0,0.71216799]
[1746671289109,0.2042268,98650.0,98649.0,0.5288]
[1746671289316,0.2042268,98650.0,98649.0,0.7315288]
[1746671289610,0.2042268,98650.0,98649.0,0.5288]
[1746671289800,0.2102268,98650.0,98649.0,0.5288]
[1746671290114,0.2102268,98650.0,98649.0,0.168]
[1746671290614,0.2132268,98650.0,98649.0,0.168]
[1746671291004,0.0105,98650.0,98649.0,0.3707288]
[1746671291202,0.0105,98650.0,98649.0,0.7315288]
[1746671291414,0.0105,98650.0,98649.0,0.8124288]
[1746671291718,0.0105,98650.0,98649.0,0.59195063]
[1746671291911,0.2132268,98650.0,98649.0,0.59195063]
[1746671293709,0.2042268,98650.0,98649.0,0.59195063]
[1746671293908,0.2042268,98650.0,98649.0,0.16156593]
[1746671294104,0.2042268,98650.0,98649.0,0.003]
[1746671294305,0.2027412,98643.0,98642.0,0.0749]
[1746671294507,0.2027658,98631.0,98630.0,0.3608]
[1746671295105,0.2027658,98631.0,98630.0,0.5288]
[1746671295510,0.2027658,98631.0,98630.0,1.08295589]
[1746671295718,0.2027658,98631.0,98630.0,0.88018799]
[1746671296107,0.2027658,98631.0,98630.0,1.08395589]
[1746671296313,0.2027658,98631.0,98630.0,0.83395589]
[1746671296514,0.2027658,98631.0,98630.0,0.83495589]
[1746671296717,0.2027658,98631.0,98630.0,0.83695589]
[1746671297011,0.2027658,98631.0,98630.0,0.5328]
[1746671297215,0.2027658,98631.0,98630.0,0.5288]
[1746671297417,0.2027658,98631.0,98630.0,0.5338]
[1746671298918,0.2027658,98631.0,98630.0,0.5318]
[1746671299121,0.2027658,98631.0,98630.0,0.5348]
[1746671299611,0.2027634,98633.0,98630.0,0.5338]
[1746671299811,0.2027634,98633.0,98632.0,0.2027597]
[1746671300017,0.2027638,98632.0,98631.0,0.2389]
[1746671300522,0.2027638,98632.0,98631.0,0.4416658]
[1746671301220,0.2027638,98632.0,98631.0,0.4069]
[1746671301522,0.2027638,98632.0,98631.0,0.6096658]
[1746671302522,0.2027638,98632.0,98631.0,0.6116658]
[1746671303318,0.2027483,98642.0,98641.0,0.2027387]
[1746671303524,0.2027473,98640.0,98639.0,0.1669]
[1746671303817,0.0902,98649.0,98639.0,0.1669]
[1746671303818,0.2026931,98668.0,98664.0,0.0506735]
[1746671304008,0.2026931,98668.0,98667.0,0.2026843]
[1746671304216,0.2026939,98666.0,98665.0,0.1669]
[1746671304423,0.2026939,98666.0,98665.0,0.14915244]
[1746671305219,0.2026939,98666.0,98665.0,0.51984844]
[1746671305420,0.2026939,98666.0,98665.0,0.31715244]
[1746671305921,0.2026939,98666.0,98665.0,0.32494932]
[1746671306111,0.2026939,98666.0,98665.0,0.56336183]
[1746671306621,0.2046939,98666.0,98665.0,0.56336183]
[1746671306818,0.2066939,98666.0,98665.0,0.56336183]
[1746671307016,0.2066939,98666.0,98665.0,0.36066583]
[1746671307524,0.2066939,98666.0,98665.0,0.56336183]
[1746671308119,0.2066939,98666.0,98665.0,0.36066583]
[1746671309025,0.2066939,98666.0,98665.0,0.168]
[1746671309216,0.2979939,98666.0,98665.0,0.168]
[1746671309725,0.2959939,98666.0,98665.0,0.168]
[1746671310022,0.2979939,98666.0,98665.0,0.168]
[1746671312025,0.29822248,98666.0,98665.0,0.168]
[1746671313628,0.29822248,98666.0,98665.0,0.15025053]
[1746671315829,0.29822248,98666.0,98665.0,0.51105053]
[1746671316232,0.29822248,98666.0,98665.0,0.71374653]
[1746671316531,0.29822248,98666.0,98665.0,0.51105053]
[1746671322332,0.29822248,98666.0,98665.0,0.15025053]
[1746671325436,0.29822248,98666.0,98665.0,0.13250133]
[1746671328635,0.29822248,98666.0,98665.0,0.33519733]
[1746671328636,0.09552858,98666.0,98665.0,0.33519733]
[1746671328828,0.00422858,98666.0,98665.0,0.33519733]
[1746671329032,0.20692248,98666.0,98665.0,0.33519733]
[1746671329239,0.20692248,98666.0,98665.0,0.50729733]
[1746671330640,0.00422858,98666.0,98665.0,0.50729733]
[1746671330838,0.20692248,98666.0,98665.0,0.50729733]
[1746671331938,0.35558058,98666.0,98643.0,0.3608]
[1746671332243,0.202735,98646.0,98636.0,0.3608]
[1746671332430,0.202735,98646.0,98645.0,0.3623206]
[1746671332631,0.202735,98646.0,98645.0,0.3991812]
[1746671333039,0.290335,98646.0,98645.0,0.3991812]
[1746671333437,0.290335,98646.0,98645.0,0.5691812]
[1746671335243,0.290335,98646.0,98645.0,0.5721812]
[1746671336251,0.290335,98646.0,98645.0,0.2113812]
[1746671336639,0.290335,98646.0,98645.0,0.1745206]
[1746671336851,0.478307,98646.0,98645.0,0.1745206]
[1746671337355,0.478307,98646.0,98645.0,0.0065206]
[1746671338346,0.2027617,98633.0,98632.0,0.0015208]
[1746671339150,0.2027617,98633.0,98632.0,0.1695208]
[1746671339355,0.4788617,98633.0,98632.0,0.1695208]
[1746671339550,0.4788617,98633.0,98632.0,0.1785208]
[1746671343258,0.4788617,98633.0,98632.0,0.0105208]
[1746671345757,0.2027679,98630.0,98629.0,0.03642316]
[1746671346056,0.2027967,98616.0,98615.0,0.00101404]
[1746671346758,0.2027967,98616.0,98615.0,0.36181404]
[1746671347063,0.3748967,98616.0,98615.0,0.00101404]
[1746671347261,0.3748967,98616.0,98615.0,0.16901404]
[1746671347555,0.2889967,98616.0,98615.0,0.20546249]
[1746671348765,0.2889967,98616.0,98615.0,0.20646249]
[1746671349159,0.2889967,98616.0,98615.0,0.20546249]
[1746671349465,0.2899967,98616.0,98615.0,0.40826119]
[1746671349661,0.2899967,98616.0,98615.0,0.20546249]
[1746671350665,0.2909967,98616.0,98615.0,0.40826119]
[1746671351369,0.2909967,98616.0,98615.0,0.20546249]
[1746671351564,0.2899967,98616.0,98615.0,0.20546249]
[1746671351753,0.2899967,98616.0,98615.0,0.20646249]
[1746671351959,0.0872,98616.0,98615.0,0.77006119]
[1746671352164,0.2899967,98616.0,98615.0,0.77006119]
[1746671352367,0.2889967,98616.0,98615.0,0.77106119]
[1746671352762,0.2889967,98616.0,98615.0,0.95016119]
[1746671353158,0.2889967,98616.0,98615.0,0.74636249]
[1746671353364,0.2889967,98616.0,98615.0,0.95016119]
[1746671355060,0.2889967,98616.0,98615.0,0.74736249]
[1746671355260,0.2889967,98616.0,98615.0,0.65906249]
[1746671355860,0.2889967,98616.0,98615.0,0.56826249]
[1746671358262,0.2889967,98616.0,98615.0,0.40026249]
[1746671361171,0.2889967,98616.0,98615.0,0.03946249]
[1746671365476,0.2889967,98616.0,98615.0,0.03846249]
[1746671365666,0.2899967,98616.0,98615.0,0.03846249]
[1746671365869,0.2899967,98616.0,98615.0,0.03746249]
[1746671366271,0.2909967,98616.0,98615.0,0.03746249]
[1746671368071,0.2919967,98616.0,98615.0,0.03746249]
[1746671368277,0.2929967,98616.0,98615.0,0.03746249]
[1746671369367,0.2909967,98616.0,98615.0,0.03746249]
[1746671369664,0.2929967,98616.0,98615.0,0.03746249]
[1746671370267,0.6537967,98616.0,98615.0,0.03746249]
[1746671370476,0.6517967,98616.0,98615.0,0.03746249]
[1746671370669,0.6537967,98616.0,98615.0,0.03746249]
[1746671370874,0.2929967,98616.0,98615.0,0.03746249]
[1746671371080,0.2929967,98616.0,98615.0,0.20546249]
[1746671371774,0.2929967,98616.0,98615.0,0.18770508]
[1746671371975,0.3608,98646.0,98615.0,0.18770508]
[1746671371976,0.0506917,98631.0,98615.0,0.98450908]
[1746671372183,0.253452,98634.0,98633.0,0.3608]
[1746671373068,0.253452,98634.0,98633.0,0.5288]
[1746671374882,0.2057597,98634.0,98633.0,0.5288]
[1746671375279,0.2147597,98634.0,98633.0,0.5298]
[1746671375479,0.2137597,98634.0,98633.0,0.5298]
[1746671375676,0.2047597,98634.0,98633.0,0.5288]
[1746671375882,0.2067597,98634.0,98633.0,0.5288]
[1746671376779,0.2067597,98634.0,97201.0,0.00374932]
[1746671376976,0.2067597,98634.0,98624.0,0.45368561]
[1746671377285,0.2574496,98634.0,98625.0,0.0846]
[1746671377477,0.2574496,98634.0,98625.0,0.0831]
[1746671377676,0.2534694,98628.0,98625.0,0.0821]
[1746671378184,0.2534694,98628.0,98626.0,0.101392]
[1746671378585,0.2534694,98628.0,98627.0,0.101392]
[1746671378886,0.2544694,98628.0,98626.0,0.101392]
[1746671379080,0.2544694,98628.0,98626.0,0.269392]
[1746671379081,0.001,98628.0,98626.0,0.269392]
[1746671379387,0.001,98628.0,98627.0,0.101392]
[1746671379581,0.001,98628.0,98627.0,0.231392]
[1746671380180,0.32516506,98639.0,98627.0,0.701692]
[1746671380374,0.001,98646.0,98633.0,0.3608]
[1746671380375,0.0516849,98646.0,98633.0,0.3608]
[1746671380578,0.2534314,98644.0,98636.0,0.09288561]
[1746671381076,0.2027488,98642.0,98636.0,0.26088561]
[1746671381477,0.2534346,98642.0,98636.0,0.26088561]
[1746671382289,0.2027488,98642.0,98636.0,0.26088561]
[1746671382491,0.2077488,98642.0,98636.0,0.26088561]
[1746671382788,0.2077488,98642.0,98636.0,0.168]
[1746671382991,0.005,98642.0,98641.0,0.3608]
[1746671383195,0.005,98642.0,98641.0,0.7408]
[1746671383485,0.005,98642.0,98641.0,0.842176]
[1746671383692,0.00022858,98666.0,98641.0,0.842176]
[1746671383986,0.00022858,98666.0,98649.0,0.3608]
[1746671384294,0.202698,98664.0,98649.0,0.5388]
[1746671384496,0.2026987,98664.0,98649.0,0.64016799]
[1746671384881,0.1016,98665.0,98649.0,0.64016799]
[1746671385497,0.1016,98665.0,98649.0,0.69189841]
[1746671385684,0.1016,98665.0,98649.0,0.69289841]
[1746671385685,0.3042968,98665.0,98649.0,0.69289841]
[1746671385890,0.1016,98665.0,98649.0,0.69289841]
[1746671387788,0.00022858,98666.0,98649.0,0.69289841]
[1746671387994,0.3608,98667.0,98649.0,0.69289841]
[1746671388292,0.3608,98667.0,98650.0,0.09288561]
[1746671388491,0.3608,98667.0,98650.0,0.29608561]
[1746671389094,0.3608,98667.0,98657.0,0.09288561]
[1746671389288,0.3608,98667.0,98659.0,0.3608]
[1746671389484,0.3608,98667.0,98660.0,0.08524]
[1746671390086,0.1123,98666.0,98660.0,0.25324]
[1746671390291,0.00022395,98663.0,98660.0,0.25324]
[1746671390691,0.00022395,98663.0,98661.0,0.218]
[1746671390893,0.00022395,98663.0,98662.0,0.101356]
[1746671391088,0.00022395,98663.0,98662.0,0.168]
[1746671391288,0.00022395,98663.0,98662.0,0.487356]
[1746671391488,0.00122395,98663.0,98662.0,0.487356]
[1746671392095,0.00322395,98663.0,98662.0,0.487356]
[1746671392393,0.20592405,98663.0,98662.0,0.487356]
[1746671392697,0.20592405,98663.0,98662.0,0.2843]
[1746671394699,0.20592405,98663.0,98662.0,0.36954]
[1746671394992,0.00322395,98663.0,98662.0,0.168]
[1746671395198,0.00322395,98663.0,98662.0,0.25324]
[1746671395390,0.21862395,98663.0,98662.0,0.25324]
[1746671395590,0.42132405,98663.0,98662.0,0.168]
[1746671396991,0.2027251,98652.0,98650.0,0.08524]
[1746671397188,0.2245,98651.0,98650.0,0.08524]
[1746671397595,0.1074,98662.0,98650.0,0.1053]
[1746671397800,0.1116,98660.0,98651.0,0.30904]
[1746671398198,0.1129,98659.0,98651.0,0.47704]
[1746671398595,0.1116,98658.0,98651.0,0.47704]
[1746671399396,0.1116,98658.0,98651.0,0.48704]
[1746671400297,0.2027227,98652.0,98651.0,0.26424]
[1746671400493,0.5635227,98652.0,98651.0,0.001]
[1746671400805,0.2027617,98634.0,98632.0,0.0867608]
[1746671401000,0.712168,98652.0,98633.0,0.4608]
[1746671401001,0.4114807,98652.0,98633.0,0.4608]
[1746671401189,0.4114807,98652.0,98644.0,0.3608]
[1746671401190,0.3608,98652.0,98644.0,0.3608]
[1746671401502,0.3608,98652.0,98651.0,0.001]
[1746671401703,0.1096,98662.0,98651.0,0.09624]
[1746671401905,5.86e-05,98690.0,98661.0,0.7216]
[1746671402100,0.2026488,98689.0,98676.0,0.3608]
[1746671402301,5.86e-05,98690.0,98677.0,0.19044]
[1746671402602,5.86e-05,98690.0,98684.0,0.3608]
[1746671402796,5.86e-05,98690.0,98685.0,0.2162]
[1746671403101,5.86e-05,98690.0,98686.0,0.101328]
[1746671403293,0.18748383,98702.0,98686.0,0.231328]
[1746671403500,0.0015,98720.0,98701.0,0.3608]
[1746671403698,0.0015,98720.0,98710.0,0.09288561]
[1746671403899,0.0015,98720.0,98719.0,0.3608]
[1746671404200,0.2024878,98767.0,98719.0,1.07404]
[1746671404401,0.95623021,98750.0,98735.0,0.7216]
[1746671404604,0.65265837,98750.0,98749.0,0.3608]
[1746671404900,0.57309892,98780.0,98749.0,0.44604]
[1746671404901,0.40185172,98764.0,98749.0,0.44604]
[1746671405200,0.16939017,98764.0,98763.0,0.3608]
[1746671405391,0.16939017,98764.0,98763.0,0.3708]
[1746671405596,0.16939017,98764.0,98763.0,0.472052]
[1746671405797,0.37188297,98764.0,98763.0,0.3708]
[1746671405998,0.37188297,98764.0,98763.0,0.01]
[1746671406195,0.16939017,98764.0,98763.0,0.178]
[1746671407005,0.001,98766.0,98763.0,0.279252]
[1746671407207,0.06255898,98790.0,98764.0,0.327252]
[1746671407395,0.3608,98784.0,98777.0,0.3608]
[1746671407601,0.11,98783.0,98777.0,0.3708]
[1746671407902,0.06255898,98790.0,98778.0,0.226]
[1746671408105,0.06255898,98790.0,98787.0,0.3608]
[1746671408406,0.2024415,98789.0,98788.0,0.2232]
[1746671408594,0.2024415,98789.0,98788.0,0.334428]
[1746671409000,0.06255898,98790.0,98788.0,0.06170177]
[1746671409305,0.3608,98812.0,98789.0,0.101224]
[1746671409503,0.2236,98824.0,98811.0,0.3608]
[1746671409801,0.2236,98824.0,98811.0,0.01]
[1746671409802,0.3608,98814.0,98811.0,0.01]
[1746671410008,0.114,98813.0,98811.0,0.09516]
[1746671410208,0.114,98813.0,98811.0,0.26316]
[1746671410404,0.3608,98820.0,98812.0,0.101204]
[1746671410604,0.3608,98820.0,98812.0,0.2332]
[1746671410807,0.289323,98820.0,98812.0,0.2332]
[1746671410996,0.114,98819.0,98812.0,0.01]
[1746671411201,0.0015,98825.0,98812.0,0.28664681]
[1746671411400,0.0015,98825.0,98819.0,0.3608]
[1746671411605,0.002,98820.0,98819.0,0.35308176]
[1746671412106,0.002,98820.0,98819.0,0.62227776]
[1746671412504,0.002,98820.0,98819.0,0.279196]
[1746671412702,0.002,98820.0,98819.0,0.727596]
[1746671412910,0.002,98820.0,98819.0,0.639996]
[1746671413105,0.0015,98825.0,98819.0,0.727596]
[1746671413404,0.0015,98825.0,98824.0,0.3608]
[1746671413611,0.0015,98825.0,98824.0,0.4008]
[1746671413810,0.3206678,98825.0,98824.0,0.04]
[1746671414007,0.202378,98820.0,98819.0,0.169]
[1746671414313,0.563178,98820.0,98819.0,0.169]
[1746671414507,0.813178,98820.0,98819.0,0.169]
[1746671414813,0.563178,98820.0,98819.0,0.169]
[1746671415112,0.569178,98820.0,98819.0,0.17]
[1746671415414,0.717996,98820.0,98781.0,0.3608]
[1746671415613,0.2024415,98789.0,98788.0,0.01]
[1746671415807,0.2024415,98789.0,98788.0,0.05969375]
[1746671416111,0.3608,98809.0,98788.0,0.41092175]
[1746671416409,0.2023901,98815.0,98801.0,0.3608]
[1746671416709,0.1155,98818.0,98802.0,0.2173]
[1746671416901,0.0015,98825.0,98814.0,0.3608]
[1746671417107,0.3608,98840.0,98824.0,0.3608]
[1746671417416,0.2023657,98826.0,98825.0,0.0876]
[1746671417714,0.3608,98852.0,98825.0,0.19878799]
[1746671417908,0.0505824,98844.0,98834.0,0.3608]
[1746671418107,0.2023395,98840.0,98835.0,0.1054]
[1746671418305,0.2023473,98836.0,98834.0,0.5288]
[1746671418505,0.2023364,98841.0,98834.0,0.5288]
[1746671418713,0.3608,98852.0,98834.0,0.5388]
[1746671418913,0.3608,98852.0,98840.0,0.13782999]
[1746671419113,0.2023344,98843.0,98840.0,0.178]
[1746671419307,0.2023269,98845.0,98840.0,0.178]
[1746671419611,0.2023215,98848.0,98844.0,0.3608]
[1746671419809,0.2528968,98850.0,98845.0,0.1054]
[1746671420006,0.3623,98860.0,98845.0,0.1054]
[1746671420007,0.003,98852.0,98845.0,0.1154]
[1746671420311,0.2023248,98846.0,98845.0,0.178]
[1746671420512,0.1126,98851.0,98845.0,0.5388]
[1746671420709,0.2023143,98852.0,98846.0,0.101164]
[1746671420914,0.03009,98855.0,98846.0,0.111164]
[1746671421106,0.0505794,98850.0,98845.0,0.16028651]
[1746671421302,0.2023248,98846.0,98845.0,0.01]
[1746671421806,0.2023268,98845.0,98844.0,0.08756]
[1746671422002,0.2023719,98823.0,98821.0,0.08756]
[1746671422211,0.202378,98820.0,98805.0,0.44836]
[1746671423119,0.202378,98820.0,98805.0,0.3608]
[1746671423314,0.202378,98820.0,98590.0,4.5]
[1746671423315,0.2024272,98796.0,98785.0,0.3608]
[1746671423918,0.3077272,98796.0,98785.0,0.3608]
[1746671424226,0.3077272,98796.0,98782.0,0.00151862]
[1746671424528,0.2024395,98790.0,98782.0,0.00151862]
[1746671424721,0.5632395,98790.0,98782.0,0.00151862]
[1746671425027,0.2024538,98783.0,98782.0,0.00151862]
[1746671425221,0.2024887,98766.0,98753.0,0.3608]
[1746671425522,0.0506153,98780.0,98753.0,0.3608]
[1746671425726,0.1053,98779.0,98770.0,0.13782999]
[1746671425930,0.2024763,98774.0,98766.0,0.109]
[1746671426117,0.1053,98773.0,98766.0,0.277]
[1746671426318,0.1053,98773.0,98772.0,0.3608]
[1746671426716,0.0506047,98801.0,98772.0,0.472044]
[1746671426928,0.2024354,98793.0,98790.0,0.13782999]
[1746671427420,0.3138355,98792.0,98790.0,0.13782999]
[1746671427620,0.3138355,98792.0,98790.0,0.13632999]
[1746671427822,0.3138355,98792.0,98785.0,0.1103]
[1746671427823,0.0506093,98791.0,98784.0,0.3608]
[1746671428020,0.2024497,98785.0,98784.0,0.3608]